[Event "Che Chess Festival Blitz 2023"]
[Site "Thiruvananthapuram"]
[Date "2023.11.20"]
[Round "1"]
[White "Nihal Sarin"]
[Black "Praggnanandhaa R"]
[Result "0-1"]
[ECO "D45"]
[WhiteElo "2692"]
[BlackElo "2741"]
[Annotator "TA"]
[PlyCount "94"]
[EventDate "2023.11.20"]
[EventType "blitz"]
[EventCountry "IND"]
[SourceTitle "playchess.com"]
[Source "ChessBase"]
[SourceQuality "1"]
[TimeControl "180+2"]

{[%evp 17,94,11,22,0,0,0,0,0,14,0,40,22,39,35,63,0,0,0,0,0,0,0,-5,-17,135,0,0,-192,0,0,248,257,245,243,417,471,471,452,789,430,432,427,591,591,602,592,615,627,612,714,680,684,966,895,1154,1135,1118,1117,1008,979,904,903,878,872,839,832,776,743,883,864,965,645,620,88,630,-29981,-29982,-29982,-29979]} 1. d4 {[%emt 0:00:03]} Nf6 {[%emt 0:00:01]} 2. Nf3 {[%emt 0:00:02]} d5 {[%emt 0:00:01]} 3. c4 {[%emt 0:00:03]} e6 {[%emt 0:00:04]} 4. Nc3 {[%emt 0:00:02]} c6 {[%emt 0:00:07]} 5. e3 {[%emt 0:00:05]} Nbd7 {[%emt 0:00:01]} 6. Be2 {[%emt 0:00:04]} Bd6 {[%emt 0:00:02]} 7. O-O {[%emt 0:00:05]} O-O {[%emt 0:00:03]} 8. b3 {[%emt 0:00:01]} Ne4 {[%emt 0:00:01]} 9. Bb2 {[%emt 0:00:14] The main line 9.Bb2 scores better than 9.Nxe4.} f5 {[%emt 0:00:01]} 10. Bd3 {[%emt 0:00:03] D45: Semi-Slav: 5 e3.} Qf6 {[%emt 0:00:08]} 11. Ne2 {[%emt 0:00:06]} g5 {[%emt 0:00:02] [#]} 12. Rc1 $146 {[%emt 0:00:45] The position is equal.} ({Predecessor:} 12. Ne1 Qh6 13. g3 Qh3 14. f3 Rf6 15. fxe4 fxe4 16. Rxf6 Nxf6 17. Nf4 gxf4 18. Bf1 {½-½ Suba,M (2522)-Rodriguez Guerrero,E (2391) Dos Hermanas op 4th 2004 (3)}) 12... a5 {[%emt 0:00:28]} (12... g4 $5 {[%cal Rg4f3]} 13. Ne1 Qh6 $11) 13. a4 {[%emt 0:00:26]} h5 {[%emt 0:00:20]} (13... g4 $5 {[%cal Rg4f3]} 14. Ne1 Qh6 $11) 14. Rc2 {[%emt 0:00:16][%cal Oh2h4]} (14. Ne1 $5 {[%cal Rf2f3]}) 14... Rf7 {[%emt 0:00:10]} 15. Qa1 {[%emt 0:00:04]} Qh6 {[%emt 0:00:40]} 16. Rd1 {[%emt 0:00:33]} (16. cxd5 $1 $14 exd5 17. Ne5) 16... h4 $11 {[%emt 0:00:14]} 17. Ne5 {[%emt 0:00:17]} Bxe5 {[%emt 0:00:07]} 18. dxe5 {[%emt 0:00:01]} h3 {[%emt 0:00:01] Strongly threatening ...hxg2.} 19. g3 {[%emt 0:00:19]} Qh5 {[%emt 0:00:37] ...Qf3 would be deadly.} 20. Nd4 {[%emt 0:00:01] Dodges Qf3. cxd5 is the strong threat.} (20. Bxe4 fxe4 21. Rdd2 b6 22. cxd5 cxd5 $17) 20... f4 $2 {[%emt 0:00:13] [#]} ({Better is} 20... Nxe5 $11 21. Be2 Ng4) 21. exf4 {[%emt 0:00:07]} (21. Nxe6 $2 Qf3 22. Bf1 fxg3 23. fxg3 Qxe3+ 24. Kh1 Qf3+ 25. Kg1 Nf2 $19) (21. cxd5 $1 $16 Ndc5 22. Bxe4 (22. dxc6 $2 fxg3 23. fxg3 Nxd3 $19) 22... Nxe4 23. f3 (23. dxc6 bxc6 24. f3 c5 $15) (23. dxe6 Bxe6 24. exf4 Bxb3 $15 {[%mdl 64] Promotion}) 23... Nxg3 24. e4 (24. hxg3 fxg3 25. dxc6 bxc6 $17) (24. dxe6 Bxe6 25. Rd3 Qg6 $15) (24. dxc6 bxc6 25. Ba3 c5 $19)) 21... gxf4 {[%emt 0:00:01]} 22. f3 $2 {[%emt 0:00:01] [#]} (22. Nxe6 $2 Qf3 23. Nxf4 (23. Bxe4 dxe4 24. Nxf4 Rxf4 25. Kf1 Nc5 26. Rd8+ Kf7) 23... Rxf4 $19) (22. Bxe4 dxe4 23. Rc3 (23. Nxe6 Qf3 24. Nxf4 Rxf4 25. Kf1 Nc5 26. Rd8+ Kf7) 23... Nxe5 24. gxf4 Nd3 25. Rdxd3 exd3 26. Rxd3 e5 27. fxe5 c5 28. Rg3+ Rg7 $19) (22. cxd5 $11 Ndc5 23. dxc6) 22... Ng5 $2 {[%emt 0:00:10]} (22... Nec5 23. g4 Qh6 24. Be2 $16) (22... Nxe5 $1 $19 23. fxe4 fxg3 24. hxg3 (24. exd5 $2 exd5 25. Re1 Nxd3 $19) 24... c5) 23. g4 $1 {[%emt 0:00:06]} (23. cxd5 Nxe5 24. Re2 Ngxf3+ 25. Nxf3 Nxf3+ 26. Kh1 cxd5 $17) 23... Nxf3+ $2 {[%emt 0:00:06]} 24. Kh1 $1 $18 {[%emt 0:00:02]} Qxg4 {[%emt 0:00:02] ( -> ...Rg7)} (24... Qxe5 $2 25. Nxf3 Qd6 26. Re2 $18) 25. Rf2 {[%emt 0:00:01]} Nh4 {[%emt 0:00:05]} (25... Nfxe5 $2 26. Rg1 Nf6 27. Bc2 $18 (27. Rxg4+ Nfxg4 28. Rd2 Nxd3 $11) (27. Rxf4 Qg2+ 28. Rxg2+ hxg2+ 29. Kxg2 Nxd3 $18)) (25... Ndxe5 $2 26. Nxf3 Nxd3 27. Rxd3 $18) (25... Nc5 {was worth a try.}) 26. Rg1 {[%emt 0:00:02]} Ng2 {[%emt 0:00:02]} 27. Rfxg2 {[%emt 0:00:01]} hxg2+ {[%emt 0:00:01]} 28. Rxg2 {[%emt 0:00:00]} Qxg2+ {[%emt 0:00:02]} 29. Kxg2 {[%emt 0:00:02]} Nxe5 {[%emt 0:00:00] aiming for ...Rg7+.} 30. Be2 {[%emt 0:00:02]} c5 {[%emt 0:00:06]} 31. Nf3 {[%emt 0:00:02]} Nxf3 {[%emt 0:00:03]} 32. Bxf3 {[%emt 0:00:02] This pair of bishops is nice.} d4 {[%emt 0:00:00]} 33. Qe1 {[%emt 0:00:01]} Bd7 {[%emt 0:00:05]} 34. Qe5 {[%emt 0:00:02]} Bc6 {[%emt 0:00:03]} 35. Qxc5 {[%emt 0:00:04]} (35. Qxe6 Re8 36. Qh3 Rh7 $11) 35... Rd8 {[%emt 0:00:02]} 36. Bxd4 {[%emt 0:00:02] White threatens Qg5+ and mate.} Rf5 {[%emt 0:00:01] Repels Qg5+} 37. Qb6 {[%emt 0:00:01]} Rd7 {[%emt 0:00:01]} 38. Bxc6 {[%emt 0:00:03]} bxc6 {[%emt 0:00:01]} 39. Kf3 {[%emt 0:00:01]} Kf7 {[%emt 0:00:04]} 40. Ke4 {[%emt 0:00:03]} (40. Qxc6 Rxd4 41. c5 Rd3+ 42. Ke2 Rdd5 $11) 40... f3 {[%emt 0:00:02]} 41. Bf2 {[%emt 0:00:02]} (41. Qxc6 Rxd4+ 42. Kxd4 f2 43. Qc7+ Kf6 44. Qd8+ Kf7 45. Qd7+ Kf6 46. Qd8+ Kf7 47. Qd7+ Kf6 48. Qd8+ $11) 41... Rd2 {[%emt 0:00:02]} 42. h4 {[%emt 0:00:04]} c5 {[%emt 0:00:02]} 43. Qc7+ {[%emt 0:00:02]} Kf6 {[%emt 0:00:01]} 44. Qg3 {[%emt 0:00:02]} (44. Qxa5 Rxf2 45. Qd8+ Kf7 46. Qc7+ Kf6 47. Qd8+ Kf7 48. Qd7+ Kf6 49. Qd8+ $11) 44... e5 {[%emt 0:00:04][%cal Be6e5,Be5f4][%mdl 32]} 45. Be3 $2 {[%emt 0:00:04]} (45. Bxc5 Rf4+ 46. Ke3 Rg2 $11) (45. h5 $1 $18 {is the precise move to win. Threatening mate with Qg6+.} Re2+ 46. Kd5 e4+ 47. Kc6 Rxh5 48. Qf4+ Kg6 49. Bxc5) 45... Re2 $2 {[%emt 0:00:01][%mdl 8192]} (45... f2 $16 46. Bxf2 (46. Bxd2 f1=Q $17) 46... Rdxf2) 46. Qg4 $4 {[%emt 0:00:01][%mdl 8192]} (46. h5 $18 Rf4+ 47. Kd5 Rxe3 48. Qg6+ (48. Kxc5 f2 $11) 48... Ke7 49. Qd6+ (49. Kxc5 f2 $11) 49... Kf7 50. Qg6+ Ke7 51. Qe6+ (51. Kxc5 f2 $11) 51... Kf8 52. h6 Rd3+ 53. Kxc5) 46... Rf4+ {[%emt 0:00:02]} 47. Qxf4+ {[%emt 0:00:03]} exf4 {[%emt 0:00:06][%mdl 64] Pin. Black used his chance. An entertaining game by Praggnanandhaa R.   Weighted Error Value: White=0.19 (very precise) /Black=0.58} 0-1

[Event "Che Chess Festival Blitz 2023"]
[Site "Thiruvananthapuram"]
[Date "2023.11.20"]
[Round "2.1"]
[White "Praggnanandhaa R"]
[Black "Nihal Sarin"]
[Result "0-1"]
[ECO "C85"]
[WhiteElo "2741"]
[BlackElo "2692"]
[Annotator "TA"]
[PlyCount "144"]
[EventDate "2023.11.20"]
[EventType "blitz"]
[EventCountry "IND"]
[SourceTitle "playchess.com"]
[Source "ChessBase"]
[SourceQuality "1"]
[TimeControl "180+2"]

{[%evp 13,144,10,8,3,5,1,14,2,17,12,16,12,9,0,15,18,36,22,27,24,14,0,17,7,12,-18,65,65,55,58,60,62,70,52,52,0,14,17,33,30,58,52,56,52,48,30,73,57,71,33,26,7,0,19,81,-41,-40,-222,-219,-219,-220,-219,-219,-222,-222,-261,-224,-274,-18,-215,-214,-287,-273,-1035,0,-260,0,-277,-153,-239,-226,-244,-243,-243,-218,-218,-217,-205,-158,-155,-155,-152,-89,-152,-108,-197,-187,-189,-189,-182,-181,-181,-181,-182,-161,-295,-288,-301,-301,-301,-301,-301,-301,-301,-297,-287,-285,-407,-407,-407,-407,-400,-400,-400,-400,-400,-400,-393,-385,-359,-316,-348,-341]} 1. e4 {[%emt 0:00:02]} e5 {[%emt 0:00:03]} 2. Nf3 {[%emt 0:00:02]} Nc6 {[%emt 0:00:01]} 3. Bb5 {[%emt 0:00:02]} a6 {[%emt 0:00:01]} 4. Ba4 {[%emt 0:00:01]} Nf6 {[%emt 0:00:01]} 5. O-O {[%emt 0:00:05]} Be7 {[%emt 0:00:01]} 6. Bxc6 {[%emt 0:00:09]} dxc6 {[%emt 0:00:01]} 7. d3 {[%emt 0:02:55]} Nd7 {[%emt 0:00:01]} 8. Be3 {[%emt 0:00:00] C85: Closed Ruy Lopez: Deferred Exchange Variation.} O-O {[%emt 0:00:07]} 9. Nbd2 {[%emt 0:00:00]} f6 {[%emt 0:00:03]} 10. Nh4 {[%emt 0:00:00] [#] The position is equal.} Rf7 $146 {[%emt 0:00:06]} ({Predecessor:} 10... g6 11. Nhf3 Nc5 12. d4 exd4 13. Nxd4 Ne6 14. Nxe6 Bxe6 15. Qe2 Qe8 16. f4 f5 {½-½ Vaishali,R (2448)-Muzychuk,A (2510) FIDE Grand Swiss (Women) 2023 (5)}) 11. Nf5 {[%emt 0:00:00]} Bf8 {[%emt 0:00:01]} 12. f4 {[%emt 0:00:00]} (12. Qg4 {is more complex.} Kh8 13. h4 Bc5 14. Qh5) 12... exf4 {[%emt 0:00:03]} 13. Bxf4 {[%emt 0:00:00]} Nc5 {[%emt 0:00:02]} 14. Be3 {[%emt 0:00:00]} Ne6 {[%emt 0:00:20]} 15. Kh1 {[%emt 0:00:00]} c5 {[%emt 0:00:03]} 16. Qg4 {[%emt 0:00:00] [#] Strongly threatening Nh6+.} Kh8 {[%emt 0:00:02]} 17. Qh5 {[%emt 0:00:00]} Qe8 {[%emt 0:00:17]} 18. Qh4 {[%emt 0:00:00]} b6 {[%emt 0:00:29]} 19. Rf3 {[%emt 0:00:00]} Bb7 {[%emt 0:00:36]} (19... Nd8 $11) 20. Raf1 $14 {[%emt 0:00:00]} (20. Rh3 g6 21. Nh6 Bxh6 22. Qxh6 Kg8 $11) 20... Rd8 {[%emt 0:01:03]} 21. Rh3 {[%emt 0:00:00][%csl Gh3][%cal Rh4h7]} g6 {[%emt 0:00:01]} 22. Nh6 {[%emt 0:00:00]} Bxh6 {[%emt 0:00:01]} 23. Qxh6 {[%emt 0:00:00][%cal Of1f6]} (23. Bxh6 $5 {[%cal Rf1f6]} Qe7 24. Rhf3 $14) 23... Qg8 {[%emt 0:00:11]} 24. Nf3 {[%emt 0:00:12]} Qg7 {[%emt 0:00:06]} 25. Qh4 {[%emt 0:00:01]} g5 {[%emt 0:00:00]} 26. Qe1 {[%emt 0:00:10]} Rdf8 {[%emt 0:00:08]} 27. Bd2 {[%emt 0:00:03]} h6 {[%emt 0:00:03]} 28. Rg3 {[%emt 0:00:03]} Qh7 {[%emt 0:00:02]} 29. h4 {[%emt 0:00:06]} a5 {[%emt 0:00:02]} 30. Bc3 {[%emt 0:00:02]} Kg8 {[%emt 0:00:01]} 31. Qe3 {[%emt 0:00:02]} Bc8 {[%emt 0:00:02]} 32. Kg1 {[%emt 0:00:03][%cal Rh4g5]} Ng7 $1 {[%emt 0:00:01]} 33. hxg5 {[%emt 0:00:06]} hxg5 {[%emt 0:00:02] [#]} (33... fxg5 $11 {keeps the balance.} 34. Nd2 Rxf1+ 35. Nxf1 g4) 34. e5 {[%emt 0:00:01]} (34. Rf2 $1 $16) 34... Nf5 $1 $15 {[%emt 0:00:01][%csl LRe3,LRg3]} 35. Nxg5 $2 {[%emt 0:00:03]} fxg5 $19 {[%emt 0:00:04]} 36. Rxg5+ {[%emt 0:00:01]} Rg7 {[%emt 0:00:00]} 37. Rxg7+ {[%emt 0:00:04]} Qxg7 {[%emt 0:00:01]} 38. Qe4 {[%emt 0:00:01]} Be6 {[%emt 0:00:03] Dodges Qc4} 39. Rf3 {[%emt 0:00:03]} Rf7 {[%emt 0:00:03]} 40. Be1 {[%emt 0:00:01]} Qh7 $2 {[%emt 0:00:05]} ({Black should try} 40... Qg5 $19 {...Rg7 would be deadly.} 41. c3 Rg7 42. Qa8+ Kf7) 41. Qc6 $2 {[%emt 0:00:03]} (41. Rh3 $1 $11 Qg7 42. c4) 41... Qg6 {[%emt 0:00:02]} ({But not} 41... Bxa2 42. e6 (42. Qe8+ $2 Rf8 $19) 42... Rf8 43. Bc3 $16) (41... Nd4 $2 42. Qa8+ Kg7 43. Rg3+ $18) 42. Qe8+ {[%emt 0:00:01]} Kg7 {[%emt 0:00:01][%cal Of5e3] Threatens to win with ...Ne3!} 43. Bf2 {[%emt 0:00:03]} (43. Rh3 Rf8 44. Qxg6+ Kxg6 45. Rf3) 43... Rf8 $2 {[%emt 0:00:03]} (43... Bxa2 44. b3 $15) ({Better is} 43... Bd7 $19 44. Qd8 Bc6) 44. Qc6 {[%emt 0:00:01][%mdl 8192]} (44. Qxg6+ $11 Kxg6 45. g4) 44... Rf7 $2 {[%emt 0:00:01]} ({Not} 44... Bxa2 45. Qxg6+ Kxg6 46. g4 $11) (44... Ne7 $19 45. Qe4 Qxe4 46. dxe4 Bxa2) 45. a3 $2 {[%emt 0:00:02][%mdl 8192]} (45. Qe8 $11 {and White has nothing to worry.} Bd7 46. Qd8) 45... Nh6 {[%emt 0:00:02]} (45... Qh6 $19 {aiming for ...Kf8.} 46. Qe4 Qc1+ 47. Kh2 Qg5) 46. Rxf7+ {[%emt 0:00:02]} (46. Rf6 $17 {is a better defense.} Rxf6 47. exf6+ Qxf6 48. Qxc7+ Bf7 49. Bg3) 46... Qxf7 {[%emt 0:00:01]} 47. Bh4 {[%emt 0:00:01]} Ng4 {[%emt 0:00:01] Inhibits Bf6+.} 48. Qe4 {[%emt 0:00:01] Prevents Qf4.} Qf5 {[%emt 0:00:02]} 49. Qxf5 {[%emt 0:00:02]} Bxf5 {[%emt 0:00:02]} 50. Bd8 {[%emt 0:00:00]} Nxe5 {[%emt 0:00:02]} 51. Bxc7 {[%emt 0:00:01]} Nd7 {[%emt 0:00:01]} 52. Kf2 {[%emt 0:00:03]} Kf7 {[%emt 0:00:01]} (52... a4 $142 53. Kf3 b5) 53. Ke3 {[%emt 0:00:01]} (53. b3 $142) 53... Ke6 {[%emt 0:00:02]} 54. c4 {[%emt 0:00:02]} (54. b3 $17 {keeps fighting.}) 54... a4 {[%emt 0:00:05] And now ...Ne5 would win.} 55. d4 {[%emt 0:00:02] Prevents Ne5} Bg4 {[%emt 0:00:02]} 56. Kd3 {[%emt 0:00:02]} Kf5 {[%emt 0:00:02]} 57. Bd6 {[%emt 0:00:04]} Bd1 {[%emt 0:00:02]} 58. Bc7 {[%emt 0:00:04]} Bb3 {[%emt 0:00:02]} 59. g3 {[%emt 0:00:04]} (59. Bd6 $142) 59... Kg4 {[%emt 0:00:01]} 60. Bd6 {[%emt 0:00:01]} Kf3 {[%emt 0:00:03]} 61. Bc7 {[%emt 0:00:01]} Bd1 {[%emt 0:00:01]} 62. Bd6 {[%emt 0:00:04]} Be2+ {[%emt 0:00:01]} 63. Kc3 {[%emt 0:00:01]} Ke4 {[%emt 0:00:02]} 64. dxc5 {[%emt 0:00:02]} bxc5 {[%emt 0:00:01]} 65. Be7 {[%emt 0:00:02]} (65. Bc7 {was the only chance.}) 65... Ke5 {[%emt 0:00:03]} 66. Bd8 {[%emt 0:00:03]} Kd6 {[%emt 0:00:02]} 67. Bg5 {[%emt 0:00:01]} Bd1 {[%emt 0:00:03]} 68. Bf4+ {[%emt 0:00:03]} Kc6 {[%emt 0:00:02]} 69. Kd3 {[%emt 0:00:00]} Nb6 {[%emt 0:00:01]} 70. Kd2 {[%emt 0:00:04]} Bg4 {[%emt 0:00:02]} ({Weaker is} 70... Nxc4+ 71. Kxd1 Nxb2+ 72. Kc2 $11) 71. Kc3 {[%emt 0:00:02]} Be6 {[%emt 0:00:01]} 72. Bg5 Nxc4 {[%emt 0:00:01] Weighted Error Value: White=0.56/Black=0.37} 0-1

[Event "Che Chess Festival Blitz 2023"]
[Site "Thiruvananthapuram"]
[Date "2023.11.20"]
[Round "3.1"]
[White "Nihal Sarin"]
[Black "Praggnanandhaa R"]
[Result "0-1"]
[ECO "C54"]
[WhiteElo "2692"]
[BlackElo "2741"]
[Annotator "TA"]
[PlyCount "152"]
[EventDate "2023.11.20"]
[EventType "blitz"]
[EventCountry "IND"]
[SourceTitle "playchess.com"]
[Source "ChessBase"]
[SourceQuality "1"]
[TimeControl "180+2"]

{[%evp 11,152,8,19,11,22,14,23,26,52,0,6,-27,-14,-14,-12,-13,-3,-29,-50,-89,-101,-101,-99,-98,-89,-89,-84,-81,-77,-82,-82,-91,-66,-74,-66,-66,-66,-75,-55,-52,-45,-45,-45,-62,-45,-50,-45,-45,-45,-45,0,-45,0,-45,-46,-83,-19,-17,-21,-28,0,0,0,0,0,-51,18,11,17,0,81,12,51,-127,-112,-123,23,13,203,13,232,0,-7,-287,-264,-425,-355,-361,-307,-361,-350,-346,-356,-654,-629,-1073,-577,-573,-565,-563,-547,-830,-965,-2051,-2041,-1656,-1643,-1180,-888,-29971,-29972,-12843,-12843,-5269,-741,-3255,-2996,-29978,-29976,-29975,-29972,-29972,-29973,-29973,-29974,-29974,-29975,-29975,-29976,-29985,-29986,-29986,-29986,-29985,-29984,-29984,-29985,-29985,-29986,-29986,-29987,-29992,-29989]} 1. e4 {[%emt 0:00:01]} e5 {[%emt 0:00:04]} 2. Nf3 {[%emt 0:00:02]} Nc6 {[%emt 0:00:00]} 3. Bc4 {[%emt 0:00:01]} Bc5 {[%emt 0:00:02]} 4. O-O {[%emt 0:00:05]} Nf6 {[%emt 0:00:01]} 5. d3 {[%emt 0:00:01]} d6 {[%emt 0:00:02]} 6. c3 {[%emt 0:00:02]} a6 {[%emt 0:00:01]} 7. a4 {[%emt 0:00:02] C54: Giuoco Piano: 4 c3 Nf6, main lines with 5 d4 and 5 d3.} Ba7 {[%emt 0:00:02]} 8. Re1 {[%emt 0:00:07] 8.Re1 is better than 8.Nbd2.} h6 {[%emt 0:00:02]} (8... Ng4 $5 {[%cal Rg4f2]} 9. Re2 O-O $11) 9. Nbd2 {[%emt 0:00:10] White has an edge.} g5 {[%emt 0:00:03][%cal Bg7g5,Bg5g4][%mdl 32]} 10. Nf1 {[%emt 0:00:33]} (10. b4 $14 {deserves consideration.}) 10... g4 $11 {[%emt 0:00:13]} 11. Nh4 {[%emt 0:00:18] [#]} Nxe4 $1 {[%emt 0:00:09][%mdl 64] Discovered Attack} 12. dxe4 {[%emt 0:00:06] Hoping for Nf5.} Qxh4 {[%emt 0:00:03]} 13. Be3 {[%emt 0:00:01]} Be6 $40 {[%emt 0:00:18][%mdl 128] Black attacks.} 14. Bxe6 {[%emt 0:00:06]} fxe6 {[%emt 0:00:02]} 15. Qb3 {[%emt 0:00:01]} Kd7 {[%emt 0:00:05]} 16. Rad1 {[%emt 0:00:02][%cal Od1d6] [#]} (16. Qxb7 $2 Bxe3 17. Nxe3 Rhb8 $19) 16... Rhf8 $146 {[%emt 0:00:32]} (16... Qe7 {simplifies} 17. Bxa7 Rxa7 18. Ne3 h5) ({Predecessor:} 16... Raf8 17. Re2 Bxe3 18. Nxe3 Na5 19. Qc2 Rf7 20. Qd3 Rhf8 21. Rdd2 Nb3 22. Rc2 Nc5 {0-1 Sztokbant,B (2213)-Horvath,D (2523) Titled Tuesday intern op 13th Jun Early blitz 2023 (1)}) 17. Rd2 {[%emt 0:00:10]} Bxe3 {[%emt 0:00:11]} (17... h5 {is more complex.} 18. Red1 Bxe3 19. Nxe3 Rab8) 18. Nxe3 {[%emt 0:00:02]} Rab8 {[%emt 0:00:02]} 19. Qd1 {[%emt 0:00:13]} h5 {[%emt 0:00:03]} 20. b4 {[%emt 0:00:01]} b5 {[%emt 0:00:14] Wards off Nc4} 21. Qe2 {[%emt 0:00:20]} Ke7 {[%emt 0:01:35] Black is more active.} (21... bxa4 $6 22. Qxa6 Ra8 23. Qc4 $11) 22. Ra1 {[%emt 0:00:04]} Rb6 {[%emt 0:00:00]} 23. axb5 {[%emt 0:00:22]} axb5 {[%emt 0:00:00]} 24. Rda2 {[%emt 0:00:05]} Qg5 {[%emt 0:00:00]} (24... Qf6 {keeps more tension.} 25. g3 Qf3 26. Qc2 h4) 25. g3 {[%emt 0:00:02]} Qg6 {[%emt 0:00:00]} 26. Ng2 {[%emt 0:00:03]} Kd7 {[%emt 0:00:00]} 27. Qd3 {[%emt 0:00:32]} Qf6 {[%emt 0:00:00]} 28. Nh4 {[%emt 0:00:11]} Rb7 {[%emt 0:00:08]} 29. Rb2 {[%emt 0:00:05]} Rfb8 {[%emt 0:00:03]} 30. Rba2 {[%emt 0:00:02]} Rf8 {[%emt 0:00:03]} 31. Kg2 {[%emt 0:00:02]} Rfb8 {[%emt 0:00:03]} 32. Qe3 {[%emt 0:00:05]} Ne7 {[%emt 0:00:02]} (32... Rg8 {is interesting.} 33. f3 Rf8 34. Qd3 Qg7) 33. Rh1 {[%emt 0:00:06]} Ng6 {[%emt 0:00:02]} ({Better is} 33... Rb6 $17) 34. Nxg6 {[%emt 0:00:02]} Qxg6 {[%emt 0:00:01]} 35. h3 {[%emt 0:00:00]} Rf8 {[%emt 0:00:02]} 36. hxg4 {[%emt 0:00:02]} Qxg4 {[%emt 0:00:01]} 37. Rh4 {[%emt 0:00:01]} Qg6 {[%emt 0:00:02]} 38. Qe2 {[%emt 0:00:05]} (38. Kh3 $11) 38... Rh8 {[%emt 0:00:03]} (38... Rf4 $15 39. Qxh5 Qxh5 40. Rxh5 Rxe4) 39. Ra5 {[%emt 0:00:02]} (39. Ra1 {simplifies} Ke7 40. Rah1 Rbb8 41. Rxh5 Rxh5 42. Rxh5 Rf8 43. Rh3) 39... Kc6 {[%emt 0:00:03]} 40. Ra1 {[%emt 0:00:03]} Rbb8 {[%emt 0:00:01]} (40... Qe8 $11) 41. Rah1 {[%emt 0:00:01]} ({White should try} 41. c4 $1 $16) 41... Rbf8 {[%emt 0:00:03]} 42. Rxh5 $2 {[%emt 0:00:02]} (42. c4 $1 $14 {keeps the upper hand.}) 42... Rxh5 $17 {[%emt 0:00:01]} 43. Rxh5 $14 {[%emt 0:00:01][%mdl 4096] Endgame KQR-KQR} Ra8 {[%emt 0:00:01]} (43... Rf4 $17 44. Qa2 Kd7) 44. Rh4 {[%emt 0:00:03] Prevents Qxe4+} Ra4 $2 {[%emt 0:00:03] [#]} (44... Kb6 $11) 45. Qd3 $2 {[%emt 0:00:03]} (45. Rh8 $1 $18 {[%cal Rh8b8] Strongly threatening Rb8.} Kb6 46. Rb8+ {[%mdl 64] Deflection} Ka7 47. Rxb5 (47. Qxb5 $2 Qxe4+ 48. Kh2 Ra1 $19)) 45... Qg5 $2 {[%emt 0:00:02] [#]} (45... Qe8 $11) 46. Qe2 $2 {[%emt 0:00:02]} (46. Rh8 $1 $18 {[%cal Rh8b8] White threatens Rb8 and mate.} Ra6 47. c4 (47. Rb8 Rb6 $14)) 46... Qc1 $11 {[%emt 0:00:01]} 47. Rh1 $2 {[%emt 0:00:02][%mdl 8192] White is now going downhill.} (47. Qe3 $1 $11 {and White is okay.} Qxe3 48. fxe3) 47... Qxc3 $19 {[%emt 0:00:02]} 48. Qg4 $2 {[%emt 0:00:01]} (48. Rb1) 48... Qc4 {[%emt 0:00:02]} (48... Rxb4 $2 {loses.} 49. Qg8 Rb2 50. Qa8+ Kc5 51. Ra1 $19) 49. Re1 {[%emt 0:00:04]} Rxb4 {[%emt 0:00:02]} 50. Qg6 {[%emt 0:00:01]} Rb2 {[%emt 0:00:02]} 51. Qe8+ {[%emt 0:00:01]} Kb7 {[%emt 0:00:03]} 52. Ra1 $2 {[%emt 0:00:01]} (52. g4) 52... Qxe4+ {[%emt 0:00:02]} 53. Kg1 {[%emt 0:00:00] White wants to mate with Qa8+.} Kb6 {[%emt 0:00:01]} 54. Qb8+ {[%emt 0:00:02]} Qb7 {[%emt 0:00:00]} ({Stronger than} 54... Kc5 55. Qxc7+ Kb4 56. Qxd6+ Kb3 57. Qxe6+ Kc2 58. Rf1 $11) 55. Qe8 {[%emt 0:00:04]} b4 {[%emt 0:00:04]} 56. Qxe6 {[%emt 0:00:03]} Qe4 {[%emt 0:00:01] Against Qc4} 57. Qc8 {[%emt 0:00:04]} Rb1+ {[%emt 0:00:01]} 58. Rxb1 {[%emt 0:00:01]} Qxb1+ {[%emt 0:00:01] KQ-KQ} 59. Kh2 {[%emt 0:00:01]} Qe4 {[%emt 0:00:02] And now ...b3 would win.} 60. g4 {[%emt 0:00:02]} b3 {[%emt 0:00:01]} 61. Qb8+ {[%emt 0:00:03]} Qb7 {[%emt 0:00:01]} 62. Qg8 {[%emt 0:00:01]} Ka7 {[%emt 0:00:04]} (62... d5 $142 63. Qg5 b2 64. Qe3+ Kc6 65. Qh6+ Kb5) 63. Qc4 {[%emt 0:00:03]} Qb6 {[%emt 0:00:03]} 64. Qa4+ {[%emt 0:00:01]} Kb7 {[%emt 0:00:01] Black mates.} 65. Qe4+ {[%emt 0:00:01]} c6 {[%emt 0:00:01]} 66. Qh7+ {[%emt 0:00:04]} Ka6 {[%emt 0:00:01]} 67. Qd3+ {[%emt 0:00:01]} Qb5 {[%emt 0:00:00]} 68. Qb1 {[%emt 0:00:03]} b2 {[%emt 0:00:02]} 69. g5 {[%emt 0:00:01] [#]} e4 $1 {[%emt 0:00:01]} 70. Qa2+ {[%emt 0:00:04]} (70. g6 Kb6) 70... Kb6 {[%emt 0:00:00]} 71. Qb1 {[%emt 0:00:00]} Qe5+ {[%emt 0:00:07]} 72. Kh3 {[%emt 0:00:02]} Qf5+ {[%emt 0:00:01]} 73. Kh4 {[%emt 0:00:01]} Qf4+ {[%emt 0:00:03]} 74. Kh5 {[%emt 0:00:01]} Qc1 {[%emt 0:00:01]} 75. Qxe4 {[%emt 0:00:03]} b1=Q {[%emt 0:00:01]} 76. Qd4+ {[%emt 0:00:01]} Qc5 {[%emt 0:00:01] Weighted Error Value: White=0.62/Black=0.36} 0-1